fUSD/lending_fUSD_20240214
["ID","MTS","AMOUNT","RATE_DAILY","PERIOD"]
[314010135,1707923495269,-6303.05,0.00038082,2]
[314010136,1707923495280,-1424.26,0.00038082,2]
[314010137,1707923495290,-6722.84,0.00038082,2]
[314010138,1707923495300,-6796.38,0.00038082,2]
[314010139,1707923495310,-500.0,0.00038082,2]
[314010140,1707923495320,-9115.46,0.00038082,2]
[314010141,1707923495331,-1430.04,0.00038082,2]
[314010142,1707923495341,-876.71,0.00038082,2]
[314010143,1707923495351,-500.0,0.00038082,2]
[314010144,1707923495361,-1566.04,0.00038082,2]
[314010145,1707923495371,-1159.69,0.00038082,2]
[314010146,1707923495380,-5625.73,0.00038082,2]
[314010147,1707923495394,-742.15,0.00038082,2]
[314010148,1707923495406,-500.0,0.00038082,2]
[314010149,1707923495416,-1074.84,0.00038082,2]
[314010150,1707923495426,-500.0,0.00038082,2]
[314010151,1707923495437,-21955.42,0.00038082,2]
[314010152,1707923495448,-10536.73,0.00038082,2]
[314010153,1707923495459,-1224.55,0.00038082,2]
[314010154,1707923495470,-3349.17,0.00038082,2]
[314010155,1707923495482,-4103.23,0.00038082,2]
[314010156,1707923495493,-1141.82,0.00038082,2]
[314010157,1707923495503,-15646.43,0.00038082,2]
[314010158,1707923495513,-500.0,0.00038082,2]
[314010159,1707923495524,-580.0,0.00038082,2]
[314010160,1707923495534,-500.0,0.00038082,2]
[314010161,1707923495545,-888.9,0.00038082,2]
[314010162,1707923495555,-849.7,0.00038082,2]
[314010163,1707923495565,-1131.16,0.00038082,2]
[314010164,1707923495575,-500.0,0.00038082,2]
[314010165,1707923495585,-500.0,0.00038082,2]
[314010166,1707923495594,-970.39,0.00038082,2]
[314010167,1707923495603,-2458.64,0.00038082,2]
[314010168,1707923495613,-1032.81,0.00038082,2]
[314010169,1707923495634,-940.22,0.00038082,2]
[314010170,1707923495649,-845.63,0.00038082,2]
[314010171,1707923495658,-655.93,0.00038082,2]
[314010172,1707923495668,-2020.71,0.00038082,2]
[314010173,1707923495678,-861.05,0.00038082,2]
[314010174,1707923495688,-1868.07,0.00038082,2]
[314010175,1707923495697,-4353.77,0.00038082,2]
[314010176,1707923495707,-500.0,0.00038082,2]
[314010177,1707923495717,-2136.24,0.00038082,2]
[314010178,1707923495727,-500.0,0.00038082,2]
[314010179,1707923495737,-3468.32,0.00038082,2]
[314010180,1707923495748,-1175.69,0.00038082,2]
[314010181,1707923495758,-4307.44,0.00038082,2]
[314010182,1707923495768,-500.0,0.00038082,2]
[314010183,1707923495779,-2131.96,0.00038082,2]
[314010184,1707923495789,-4133.28,0.00038082,2]
[314010185,1707923495799,-500.0,0.00038082,2]
[314010186,1707923495809,-3754.14,0.00038082,7]
[314010187,1707923495819,-1200.28,0.00038082,2]
[314010188,1707923495828,-1293.93,0.00038082,2]
[314010189,1707923495838,-2643.73,0.00038082,2]
[314010190,1707923495847,-551.94,0.00038082,2]
[314010191,1707923495857,-1428.62,0.00038082,2]
[314010192,1707923495867,-4255.94,0.00038082,2]
[314010193,1707923495877,-500.0,0.00038082,2]
[314010194,1707923495886,-500.0,0.00038082,2]
[314010195,1707923495900,-1073.43,0.00038082,2]
[314010196,1707923495911,-1154.7,0.00038082,2]
[314010197,1707923495921,-500.0,0.00038082,2]
[314010198,1707923495930,-749.27,0.00038082,2]
[314010199,1707923495941,-1681.08,0.00038082,2]
[314010200,1707923495951,-696.07,0.00038082,2]
[314010201,1707923495962,-1960.66,0.00038082,2]
[314010202,1707923495972,-4598.11,0.00038082,2]
[314010203,1707923495982,-1992.67,0.00038082,2]
[314010204,1707923495993,-2148.61,0.00038082,2]
[314010205,1707923496004,-776.5,0.00038082,2]
[314010206,1707923496014,-876.47,0.00038082,2]
[314010207,1707923496026,-907.63,0.00038082,2]
[314010208,1707923496036,-759.83,0.00038082,2]
[314010209,1707923496048,-1863.83,0.00038082,2]
[314010210,1707923496060,-2233.48,0.00038082,2]
[314010211,1707923496071,-22229.37,0.00038082,2]
[314010212,1707923496080,-500.0,0.00038082,2]
[314010213,1707923496090,-2807.7,0.00038082,2]
[314010214,1707923496101,-1407.78,0.00038082,2]
[314010215,1707923496112,-500.0,0.00038082,2]
[314010216,1707923496122,-4409.87,0.00038082,2]
[314010217,1707923496132,-770.43,0.00038082,2]
[314010218,1707923496147,-749.48,0.00038082,2]
[314010219,1707923496158,-500.0,0.00038082,2]
[314010220,1707923496169,-940.66,0.00038082,2]
[314010221,1707923496179,-1582.96,0.00038082,2]
[314010222,1707923496190,-778.24,0.00038082,2]
[314010223,1707923496200,-819.98,0.00038082,2]
[314010224,1707923496209,-500.0,0.00038082,2]
[314010225,1707923496220,-501.61,0.00038082,2]
[314010226,1707923496231,-1689.02,0.00038082,2]
[314010227,1707923496242,-188.825359,0.00038082,14]
[314010228,1707923496252,-200.0,0.00038088,10]
[314010229,1707923496263,-150.0,0.00038092,2]
[314010230,1707923496274,-150.0,0.00038115,2]
[314010231,1707923496284,-200.0,0.00038127,10]
[314010232,1707923496294,-200.0,0.00038165,10]
[314010233,1707923496304,-150.0,0.00038171,2]
[314010234,1707923496314,-123477.57555421,0.000382,9]
[314010235,1707923496325,-200.0,0.00038204,10]
[314010236,1707923496335,-150.0,0.00038205,2]
[314010237,1707923496345,-200.0,0.00038243,10]
[314010238,1707923496355,-22542.96997442,0.00038244,2]
[314010239,1707923496365,-502.96488548,0.00038259,2]
[314010240,1707923496376,-200.0,0.00038281,10]
[314010241,1707923496386,-150.0,0.00038298,2]
[314010242,1707923496405,-2641.0,0.000383,20]
[314010243,1707923496415,-544.0,0.000383,20]
[314010244,1707923496424,-300.0,0.00038302,2]
[314010245,1707923496434,-800.0,0.0003832,5]
[314010246,1707923496445,-200.0,0.0003832,10]
[314010247,1707923496455,-150.0,0.00038329,2]
[314010248,1707923496464,-7355.8195224,0.0003833,2]
[314010249,1707923496474,-3129.2148282,0.0003833,2]
[314010250,1707923496483,-7699.7047988,0.0003833,2]
[314010251,1707923496494,-168724.8322008,0.0003833,2]
[314010252,1707923496505,-5430.0572504,0.0003833,2]
[314010253,1707923496515,-1000.0,0.00038342,10]
[314010254,1707923496526,-1000.0,0.00038342,10]
[314010255,1707923496536,-1000.0,0.00038342,10]
[314010256,1707923496547,-1000.0,0.00038342,10]
[314010257,1707923496557,-1000.0,0.00038342,10]
[314010258,1707923496567,-6000.01,0.00038352,2]
[314010259,1707923496578,-150.0,0.00038355,2]
[314010260,1707923496589,-150.0,0.00038355,2]
[314010261,1707923496600,-28574.85781921,0.00038356,2]
[314010262,1707923496610,-500.0,0.00038356,7]
[314010263,1707923496621,-250.0,0.00038356,7]
[314010264,1707923496631,-500.0,0.00038356,7]
[314010265,1707923496648,-500.0,0.00038356,7]
[314010266,1707923496658,-500.0,0.00038356,7]
[314010267,1707923496668,-500.0,0.00038356,7]
[314010268,1707923496678,-500.0,0.00038356,7]
[314010269,1707923496688,-500.0,0.00038356,7]
[314010270,1707923496698,-500.0,0.00038356,7]
[314010271,1707923496707,-500.0,0.00038356,7]
[314010272,1707923496718,-500.0,0.00038356,7]
[314010273,1707923496727,-500.0,0.00038356,7]
[314010274,1707923496737,-636.47,0.00038356,7]
[314010275,1707923496747,-500.0,0.00038356,7]
[314010276,1707923496758,-500.0,0.00038356,7]
[314010277,1707923496767,-500.0,0.00038356,7]
[314010278,1707923496777,-609.21122021,0.00038356,7]
[314010279,1707923496786,-500.0,0.00038356,7]
[314010280,1707923496796,-500.0,0.00038356,7]
[314010281,1707923496806,-500.0,0.00038356,7]
[314010282,1707923496816,-500.0,0.00038356,7]
[314010283,1707923496825,-500.0,0.00038356,7]
[314010284,1707923496836,-500.0,0.00038356,7]
[314010285,1707923496846,-500.0,0.00038356,7]
[314010286,1707923496856,-500.0,0.00038356,7]
[314010287,1707923496866,-536.83,0.00038356,7]
[314010288,1707923496876,-500.0,0.00038356,7]
[314010289,1707923496886,-500.0,0.00038356,7]
[314010290,1707923496899,-500.0,0.00038356,7]
[314010291,1707923496908,-500.0,0.00038356,7]
[314010292,1707923496917,-430.54993903,0.00038356,7]
[314010293,1707923496926,-511.55,0.00038356,7]
[314010294,1707923496935,-500.0,0.00038356,2]
[314010295,1707923496945,-500.0,0.00038356,7]
[314010296,1707923496954,-564.0,0.00038356,7]
[314010297,1707923496965,-500.0,0.00038356,7]
[314010298,1707923496975,-500.0,0.00038356,7]
[314010299,1707923496984,-500.0,0.00038356,7]
[314010300,1707923496996,-1240.83,0.00038356,7]
[314010301,1707923497006,-500.0,0.00038356,7]
[314010302,1707923497016,-1171.11,0.00038356,7]
[314010303,1707923497025,-564.08,0.00038356,7]
[314010304,1707923497035,-1281.17,0.00038356,7]
[314010305,1707923497044,-1147.23,0.00038356,7]
[314010306,1707923497054,-500.0,0.00038356,7]
[314010307,1707923497063,-568.35,0.00038356,7]
[314010308,1707923497072,-1433.14,0.00038356,7]
[314010309,1707923497081,-500.0,0.00038356,7]
[314010310,1707923497091,-500.0,0.00038356,7]
[314010311,1707923497100,-500.0,0.00038356,7]
[314010312,1707923497109,-530.02,0.00038356,7]
[314010313,1707923497118,-528.29,0.00038356,7]
[314010314,1707923497127,-1489.83,0.00038356,7]
[314010315,1707923497137,-521.07104577,0.00038356,7]
[314010316,1707923497149,-1024.97,0.00038356,7]
[314010317,1707923497159,-500.0,0.00038356,7]
[314010318,1707923497168,-500.0,0.00038356,7]
[314010319,1707923497177,-500.0,0.00038356,7]
[314010320,1707923497187,-500.0,0.00038356,7]
[314010321,1707923497197,-569.56,0.00038356,7]
[314010322,1707923497207,-500.0,0.00038356,7]
[314010323,1707923497216,-500.0,0.00038356,7]
[314010324,1707923497226,-1152.13,0.00038356,7]
[314010325,1707923497235,-785.09,0.00038356,7]
[314010326,1707923497245,-1376.22,0.00038356,2]
[314010327,1707923497254,-500.0,0.00038356,7]
[314010328,1707923497263,-770.95,0.00038356,7]
[314010329,1707923497273,-500.0,0.00038356,7]
[314010330,1707923497282,-1599.92,0.00038356,7]
[314010331,1707923497292,-1153.23,0.00038356,7]
[314010332,1707923497301,-500.0,0.00038356,7]
[314010333,1707923497311,-1045.09,0.00038356,7]
[314010334,1707923497320,-774.56,0.00038356,7]
[314010335,1707923497329,-1031.35,0.00038356,7]
[314010336,1707923497339,-548.76,0.00038356,7]
[314010337,1707923497348,-500.0,0.00038356,7]
[314010338,1707923497358,-661.87,0.00038356,7]
[314010339,1707923497367,-500.0,0.00038356,7]
[314010340,1707923497381,-500.0,0.00038356,7]
[314010341,1707923497423,-584.37,0.00038356,7]
[314010342,1707923497433,-520.1,0.00038356,7]
[314010343,1707923497442,-1604.0,0.00038356,7]
[314010344,1707923497451,-943.16,0.00038356,7]
[314010345,1707923497459,-500.0,0.00038356,7]
[314010346,1707923497469,-500.0,0.00038356,7]
[314010347,1707923497478,-500.0,0.00038356,7]
[314010348,1707923497487,-500.0,0.00038356,7]
[314010349,1707923497495,-704.7,0.00038356,7]
[314010350,1707923497505,-1136.26,0.00038356,7]
[314010351,1707923497514,-1264.92,0.00038356,7]
[314010352,1707923497523,-644.22,0.00038356,7]
[314010353,1707923497532,-812.61,0.00038356,7]
[314010354,1707923497541,-570.14,0.00038356,7]
[314010355,1707923497550,-500.0,0.00038356,7]
[314010356,1707923497560,-500.0,0.00038356,7]
[314010357,1707923497569,-553.03,0.00038356,7]
[314010358,1707923497578,-519.06,0.00038356,7]
[314010359,1707923497587,-500.0,0.00038356,7]
[314010360,1707923497598,-1130.05,0.00038356,7]
[314010361,1707923497607,-733.41,0.00038356,7]
[314010362,1707923497616,-500.0,0.00038356,7]
[314010363,1707923497625,-674.48,0.00038356,7]
[314010364,1707923497634,-406.62120412,0.00038356,7]
[314010365,1707923497646,-500.0,0.00038356,7]
[314010366,1707923497656,-599.48,0.00038356,7]
[314010367,1707923497665,-699.45,0.00038356,7]
[314010368,1707923497675,-647.83,0.00038356,7]
[314010369,1707923497685,-808.31,0.00038356,7]
[314010370,1707923497695,-500.0,0.00038356,7]
[314010371,1707923497706,-1377.65,0.00038356,7]
[314010372,1707923497717,-734.76,0.00038356,7]
[314010373,1707923497728,-1574.35,0.00038356,7]
[314010374,1707923497738,-320.86052161,0.00038356,7]
[314010375,1707923497749,-1145.4,0.00038356,7]
[314010376,1707923497758,-1361.9,0.00038356,7]
[314010377,1707923497767,-500.0,0.00038356,7]
[314010378,1707923497777,-500.0,0.00038356,7]
[314010379,1707923497786,-500.0,0.00038356,7]
[314010380,1707923497795,-500.0,0.00038356,7]
[314010381,1707923497805,-500.0,0.00038356,7]
[314010382,1707923497814,-1000.98,0.00038356,7]
[314010383,1707923497823,-940.65,0.00038356,7]
[314010384,1707923497833,-819.39,0.00038356,7]
[314010385,1707923497842,-664.33,0.00038356,7]
[314010386,1707923497851,-500.0,0.00038356,7]
[314010387,1707923497860,-500.0,0.00038356,7]
[314010388,1707923497870,-500.0,0.00038356,7]
[314010389,1707923497880,-500.0,0.00038356,7]
[314010390,1707923497890,-574.43,0.00038356,7]
[314010391,1707923497902,-582.92,0.00038356,7]
[314010392,1707923497911,-500.0,0.00038356,7]
[314010393,1707923497921,-709.41,0.00038356,7]
[314010394,1707923497930,-523.78,0.00038356,7]
[314010395,1707923497939,-629.64,0.00038356,7]
[314010396,1707923497949,-584.12,0.00038356,7]
[314010397,1707923497959,-500.0,0.00038356,7]
[314010398,1707923497971,-549.4,0.00038356,7]
[314010399,1707923497980,-1007.67,0.00038356,7]
[314010400,1707923497989,-2090.09,0.00038356,7]
[314010401,1707923497998,-964.24,0.00038356,7]
[314010402,1707923498014,-500.0,0.00038356,7]
[314010403,1707923498024,-500.0,0.00038356,7]
[314010404,1707923498033,-633.52,0.00038356,7]
[314010405,1707923498044,-500.0,0.00038356,7]
[314010406,1707923498053,-500.0,0.00038356,7]
[314010407,1707923498063,-500.0,0.00038356,7]
[314010408,1707923498072,-1464.25,0.00038356,7]
[314010409,1707923498082,-547.73,0.00038356,7]
[314010410,1707923498091,-760.6,0.00038356,7]
[314010411,1707923498101,-1470.37,0.00038356,7]
[314010412,1707923498110,-500.0,0.00038356,7]
[314010413,1707923498120,-608.25,0.00038356,7]
[314010414,1707923498129,-500.0,0.00038356,7]
[314010415,1707923498139,-1725.04,0.00038356,7]
[314010416,1707923498151,-554.39,0.00038356,7]
[314010417,1707923498161,-500.0,0.00038356,7]
[314010418,1707923498170,-500.0,0.00038356,7]
[314010419,1707923498180,-500.0,0.00038356,7]
[314010420,1707923498190,-1351.58,0.00038356,7]
[314010421,1707923498200,-500.0,0.00038356,7]
[314010422,1707923498210,-638.35,0.00038356,7]
[314010423,1707923498219,-1000.0,0.00038356,7]
[314010424,1707923498229,-1000.0,0.00038356,7]
[314010425,1707923498239,-1000.0,0.00038356,7]
[314010426,1707923498248,-1000.0,0.00038356,7]
[314010427,1707923498258,-1000.0,0.00038356,7]
[314010428,1707923498267,-1000.0,0.00038356,7]
[314010429,1707923498276,-668.36691182,0.00038356,7]
[314010430,1707923498286,-500.0,0.00038356,7]
[314010431,1707923498295,-500.0,0.00038356,7]
[314010432,1707923498304,-619.45,0.00038356,7]
[314010433,1707923498314,-855.82,0.00038356,7]
[314010434,1707923498324,-974.92,0.00038356,7]
[314010435,1707923498333,-500.0,0.00038356,7]
[314010436,1707923498343,-500.0,0.00038356,7]
[314010437,1707923498353,-500.0,0.00038356,7]
[314010438,1707923498363,-1157.75,0.00038356,7]
[314010439,1707923498372,-896.42,0.00038356,2]
[314010440,1707923498382,-500.0,0.00038356,7]
[314010441,1707923498395,-500.0,0.00038356,7]
[314010442,1707923498404,-500.0,0.00038356,7]
[314010443,1707923498418,-566.89562204,0.00038356,7]
[314010444,1707923498428,-500.0,0.00038356,7]
[314010445,1707923498437,-544.41,0.00038356,7]
[314010446,1707923498446,-586.61,0.00038356,7]
[314010447,1707923498456,-500.0,0.00038356,20]
[314010448,1707923498465,-500.0,0.00038356,20]
[314010449,1707923498474,-500.0,0.00038356,20]
[314010450,1707923498484,-500.0,0.00038356,20]
[314010451,1707923498493,-500.0,0.00038356,20]
[314010452,1707923498502,-500.0,0.00038356,20]
[314010453,1707923498511,-500.0,0.00038356,20]
[314010454,1707923498521,-863.99,0.00038356,7]
[314010455,1707923498531,-500.0,0.00038356,7]
[314010456,1707923498540,-969.91,0.00038356,7]
[314010457,1707923498549,-500.0,0.00038356,7]
[314010458,1707923498559,-500.0,0.00038356,7]
[314010459,1707923498568,-500.0,0.00038356,7]
[314010460,1707923498577,-1237.52,0.00038356,7]
[314010461,1707923498587,-597.96,0.00038356,2]
[314010462,1707923498597,-500.0,0.00038356,7]
[314010463,1707923498607,-500.0,0.00038356,7]
[314010464,1707923498617,-686.48,0.00038356,7]
[314010465,1707923498627,-500.0,0.00038356,7]
[314010466,1707923498636,-500.0,0.00038356,7]
[314010467,1707923498649,-500.0,0.00038356,7]
[314010468,1707923498658,-633.51,0.00038356,7]
[314010469,1707923498667,-500.0,0.00038356,7]
[314010470,1707923498677,-1310.86,0.00038356,7]
[314010471,1707923498686,-500.0,0.00038356,7]
[314010472,1707923498695,-646.21,0.00038356,7]
[314010473,1707923498705,-500.0,0.00038356,7]
[314010474,1707923498714,-203.21528139,0.00038356,7]
[314010475,1707923498723,-643.81,0.00038356,7]
[314010476,1707923498732,-500.0,0.00038356,7]
[314010477,1707923498741,-582.58400134,0.00038356,7]
[314010478,1707923498750,-632.83,0.00038356,7]
[314010479,1707923498760,-1166.74,0.00038356,7]
[314010480,1707923498769,-500.0,0.00038356,7]
[314010481,1707923498778,-500.0,0.00038356,7]
[314010482,1707923498788,-500.0,0.00038356,7]
[314010483,1707923498797,-778.72,0.00038356,7]
[314010484,1707923498806,-537.19,0.00038356,7]
[314010485,1707923498815,-522.92,0.00038356,7]
[314010486,1707923498825,-500.0,0.00038356,7]
[314010487,1707923498835,-500.0,0.00038356,7]
[314010488,1707923498845,-500.0,0.00038356,7]
[314010489,1707923498855,-839.23,0.00038356,7]
[314010490,1707923498865,-540.0,0.00038356,7]
[314010491,1707923498875,-500.0,0.00038356,7]
[314010492,1707923498885,-500.0,0.00038356,7]
[314010493,1707923498897,-860.82,0.00038356,7]
[314010494,1707923498907,-500.0,0.00038356,7]
[314010495,1707923498917,-710.26,0.00038356,7]
[314010496,1707923498927,-500.0,0.00038356,7]
[314010497,1707923498937,-500.0,0.00038356,7]
[314010498,1707923498947,-500.0,0.00038356,7]
[314010499,1707923498958,-500.0,0.00038356,7]
[314010500,1707923498969,-594.3,0.00038356,7]
[314010501,1707923498979,-500.0,0.00038356,7]
[314010502,1707923498989,-1376.8,0.00038356,7]
[314010503,1707923499000,-500.0,0.00038356,7]
[314010504,1707923499009,-563.0,0.00038356,7]
[314010505,1707923499019,-689.41,0.00038356,7]
[314010506,1707923499031,-1735.17,0.00038356,7]
[314010507,1707923499041,-1292.66,0.00038356,7]
[314010508,1707923499051,-2576.99,0.00038356,7]
[314010509,1707923499061,-500.0,0.00038356,7]
[314010510,1707923499073,-500.0,0.00038356,7]
[314010511,1707923499084,-1880.82,0.00038356,7]
[314010512,1707923499095,-151.13334988,0.00038356,7]
[314010513,1707923499105,-551.14,0.00038356,7]
[314010514,1707923499115,-500.0,0.00038356,7]
[314010515,1707923499125,-1420.44,0.00038356,7]
[314010516,1707923499135,-713.29,0.00038356,7]
[314010517,1707923499149,-1306.77,0.00038356,7]
[314010518,1707923499158,-865.48,0.00038356,7]
[314010519,1707923499169,-500.0,0.00038356,7]
[314010520,1707923499179,-181.75326786,0.00038356,7]
[314010521,1707923499189,-798.43,0.00038356,7]
[314010522,1707923499199,-500.0,0.00038356,7]
[314010523,1707923499209,-500.0,0.00038356,7]
[314010524,1707923499219,-1762.73,0.00038356,7]
[314010525,1707923499230,-792.44,0.00038356,7]
[314010526,1707923499240,-500.0,0.00038356,7]
[314010527,1707923499250,-566.85,0.00038356,7]
[314010528,1707923499260,-500.0,0.00038356,7]
[314010529,1707923499270,-500.0,0.00038356,7]
[314010530,1707923499281,-616.16,0.00038356,7]
[314010531,1707923499292,-500.0,0.00038356,7]
[314010532,1707923499302,-500.0,0.00038356,7]
[314010533,1707923499313,-500.0,0.00038356,7]
[314010534,1707923499323,-721.07,0.00038356,7]
[314010535,1707923499333,-332.00056672,0.00038356,7]
[314010536,1707923499344,-500.0,0.00038356,7]
[314010537,1707923499354,-501.48,0.00038356,7]
[314010538,1707923499364,-1882.77,0.00038356,7]
[314010539,1707923499374,-500.0,0.00038356,7]
[314010540,1707923499385,-804.17,0.00038356,7]
[314010541,1707923499398,-500.0,0.00038356,7]
[314010542,1707923499408,-1538.55,0.00038356,7]
[314010543,1707923499419,-500.0,0.00038356,7]
[314010544,1707923499429,-500.0,0.00038356,7]
[314010545,1707923499439,-500.0,0.00038356,7]
[314010546,1707923499449,-747.44,0.00038356,7]
[314010547,1707923499460,-500.0,0.00038356,7]
[314010548,1707923499470,-1390.73,0.00038356,7]
[314010549,1707923499480,-1109.74,0.00038356,7]
[314010550,1707923499490,-500.0,0.00038356,7]
[314010551,1707923499500,-500.0,0.00038356,7]
[314010552,1707923499510,-500.0,0.00038356,7]
[314010553,1707923499520,-500.0,0.00038356,7]
[314010554,1707923499529,-632.23,0.00038356,7]
[314010555,1707923499539,-500.0,0.00038356,7]
[314010556,1707923499549,-500.0,0.00038356,7]
[314010557,1707923499559,-886.7,0.00038356,7]
[314010558,1707923499569,-500.0,0.00038356,7]
[314010559,1707923499579,-500.0,0.00038356,7]
[314010560,1707923499589,-500.0,0.00038356,7]
[314010561,1707923499600,-500.0,0.00038356,7]
[314010562,1707923499610,-582.6,0.00038356,7]
[314010563,1707923499620,-500.0,0.00038356,2]
[314010564,1707923499630,-500.0,0.00038356,7]
[314010565,1707923499640,-631.42,0.00038356,7]
[314010566,1707923499651,-500.0,0.00038356,7]
[314010567,1707923499661,-500.0,0.00038356,7]
[314010568,1707923499671,-500.0,0.00038356,7]
[314010569,1707923499681,-1281.5,0.00038356,7]
[314010570,1707923499690,-500.0,0.00038356,7]
[314010571,1707923499700,-500.0,0.00038356,7]
[314010572,1707923499710,-500.0,0.00038356,7]
[314010573,1707923499720,-500.0,0.00038356,7]
[314010574,1707923499730,-500.0,0.00038356,7]
[314010575,1707923499740,-500.0,0.00038356,7]
[314010576,1707923499751,-1512.4,0.00038356,7]
[314010577,1707923499761,-669.64,0.00038356,7]
[314010578,1707923499772,-2645.87,0.00038356,7]
[314010579,1707923499782,-500.0,0.00038356,7]
[314010580,1707923499793,-500.0,0.00038356,7]
[314010581,1707923499803,-649.97,0.00038356,7]
[314010582,1707923499812,-9592.87,0.00038356,7]
[314010583,1707923499823,-6589.39,0.00038356,7]
[314010584,1707923499832,-537.36,0.00038356,7]
[314010585,1707923499843,-500.0,0.00038356,7]
[314010586,1707923499853,-1074.08,0.00038356,7]
[314010587,1707923499865,-500.0,0.00038356,7]
[314010588,1707923499875,-712.86,0.00038356,7]
[314010589,1707923499885,-10349.22,0.00038356,7]
[314010590,1707923499898,-500.0,0.00038356,7]
[314010591,1707923499908,-2138.7,0.00038356,7]
[314010592,1707923499919,-2522.18,0.00038356,7]
[314010593,1707923499928,-1253.86,0.00038356,7]
[314010594,1707923499938,-500.0,0.00038356,7]
[314010595,1707923499949,-500.0,0.00038356,7]
[314010596,1707923499959,-525.81981005,0.00038356,7]
[314010597,1707923499976,-617.22,0.00038356,7]
[314010598,1707923499986,-775.14,0.00038356,7]
[314010599,1707923499997,-5438.42,0.00038356,7]
[314010600,1707923500007,-5792.28,0.00038356,7]
[314010601,1707923500018,-1042.95,0.00038356,7]
[314010602,1707923500029,-500.0,0.00038356,7]
[314010603,1707923500039,-1101.1,0.00038356,7]
[314010604,1707923500051,-1305.25,0.00038356,7]
[314010605,1707923500061,-1375.63,0.00038356,7]
[314010606,1707923500072,-500.0,0.00038356,7]
[314010607,1707923500083,-1942.7,0.00038356,7]
[314010608,1707923500093,-1710.63,0.00038356,7]
[314010609,1707923500103,-3610.33,0.00038356,7]
[314010610,1707923500113,-656.71,0.00038356,7]
[314010611,1707923500123,-500.0,0.00038356,7]
[314010612,1707923500133,-508.16,0.00038356,7]
[314010613,1707923500149,-500.0,0.00038356,7]
[314010614,1707923500163,-500.0,0.00038356,7]
[314010615,1707923500173,-13119.1,0.00038356,7]
[314010616,1707923500183,-500.0,0.00038356,7]
[314010617,1707923500194,-2795.61,0.00038356,7]
[314010618,1707923500203,-4841.93,0.00038356,7]
[314010619,1707923500214,-789.06,0.00038356,7]
[314010620,1707923500225,-3238.15,0.00038356,7]
[314010621,1707923500235,-1122.77,0.00038356,7]
[314010622,1707923500244,-1486.36,0.00038356,7]
[314010623,1707923500254,-500.0,0.00038356,7]
[314010624,1707923500264,-805.46,0.00038356,7]
[314010625,1707923500274,-5897.47,0.00038356,7]
[314010626,1707923500284,-500.0,0.00038356,7]
[314010627,1707923500294,-664.49,0.00038356,7]
[314010628,1707923500304,-1313.77,0.00038356,7]
[314010629,1707923500314,-500.0,0.00038356,7]
[314010630,1707923500324,-574.19,0.00038356,7]
[314010631,1707923500334,-500.0,0.00038356,7]
[314010632,1707923500344,-500.0,0.00038356,7]
[314010633,1707923500354,-500.0,0.00038356,7]
[314010634,1707923500364,-11522.74,0.00038356,7]